Workbook

Sheet Daten
A1: Auswahl | B1: TS (%) | C1: m³ Biogas/ t (oTS) | D1: Methan (%) | E1: m³ Biogas/ t (FM) | F1: oTs (%) | G1: Kosten | H1: N %TS | I1: P2O2 %TS | J1: K2O %TS | K1: Ertrag (to/ha) | L1: Rohfaserhaltig | M1: Verluste
A2: Maissilage (körnerarm) | B2: 32 | C2: 560 | D2: 52 | E2: =(B2*F2*C2)/10000 -> 170.24 | F2: 95 | G2: 35 | H2: 1.34 | I2: 0.53 | J2: 1.59 | K2: 60 | L2: NEIN | M2: JA
A3: Maissilage (körnerreich) | B3: 32 | C3: 645 | D3: 52 | E3: =(B3*F3*C3)/10000 -> 197.7312 | F3: 95.8 | G3: 35 | H3: 1.34 | I3: 0.53 | J3: 1.59 | K3: 60 | L3: NEIN | M3: NEIN
A4: Grassilage | B4: 25 | C4: 600 | D4: 53 | E4: 135 | F4: 90 | G4: 30 | H4: 2.7 | I4: 0.81 | J4: 3.13 | K4: 20 | L4: JA
A5: GPS | B5: 35 | C5: 620 | D5: 53 | E5: 206.15 | F5: 95 | G5: 32 | H5: 1.66 | I5: 0.65 | J5: 1.34 | K5: 40 | L5: JA
A6: Grünroggen | B6: 22 | C6: 600 | D6: 53 | E6: 118.8 | F6: 90 | G6: 30 | H6: 1.6 | I6: 0.67 | J6: 1.33 | K6: 35 | L6: JA
A7: CCM | B7: 65 | C7: 708.4 | D7: 52.6 | E7: 451.2508 | F7: 98 | G7: 100 | H7: 1.68 | I7: 0.68 | J7: 0.6 | K7: 15 | L7: NEIN
A8: Weizen | B8: 87 | C8: 720 | D8: 52.8 | E8: 614.4984 | F8: 98.1 | G8: 130 | H8: 2.45 | I8: 0.93 | J8: 0.64 | K8: 10 | L8: NEIN
A9: Tritkale/Gerste | B9: 87 | C9: 720 | D9: 52.8 | E9: 614.4984 | F9: 98.1 | G9: 130 | H9: 1.92 | I9: 0.93 | J9: 0.7 | K9: 10 | L9: NEIN
A10: Körnermais | B10: 87 | C10: 720 | D10: 52.8 | E10: 614.4984 | F10: 98.1 | G10: 130 | H10: 1.65 | I10: 0.93 | J10: 0.58 | K10: 15 | L10: NEIN
A11: Zuckerrübe | B11: 23 | C11: 720 | D11: 51 | E11: 152.352 | F11: 92 | G11: 15 | H11: 0.78 | I11: 0.43 | J11: 1.09 | K11: 80 | L11: NEIN
A12: Kartoffel | B12: 22 | C12: 737 | D12: 51 | E12: 150.7902 | F12: 93 | G12: 10 | H12: 1.59 | I12: 0.64 | J12: 2.73 | K12: 65 | L12: NEIN
A13: Maisstroh | B13: 40 | C13: 621 | D13: 51.5 | E13: 216.108 | F13: 87 | K13: 20 | L13: JA
A14: Stroh (Weizen) | B14: 86 | C14: 369.2 | D14: 51.7 | E14: 291.793528 | F14: 91.9 | K14: 30 | L14: JA
A15: Stroh (siliert) | B15: 30.5 | C15: 582.8 | D15: 55 | E15: 151.268654 | F15: 85.1 | K15: 40 | L15: JA

Sheet Siliermittel
A1: Siliermittelrechner
A3: Name: | G3: Prozent Verluste
B4: Euro pro t FM | C4: Ertrag in to/ha FM | D4: Hektar | E4: Euro pro ha FM | F4: Gesamt- ertrag | G4: < 1 m VS Winter | I4: < 2 m VS Sommer | K4: Schaufel entnahme | M4: > 8 h locker im Silo | O4: > 12 h im Beschicker | Q4: Verluste gesamt % | R4: Verlust gesamt t (FM) | S4: Verlust in € | T4: Rohfaser- haltig | U4: Verlust in ha
A5: Maissilage (körnerarm) | B5: 40 | C5: =VLOOKUP(A5,Daten!$A$1:$L$15,11,0) -> 60 | D5: 20 | E5: =B5*C5 -> 2400 | F5: =C5*D5 -> 1200 | G5: NEIN | H5: =IF(G5="JA",5,0) -> 0 | I5: JA | J5: =IF(I5="JA",5,0) -> 5 | K5: JA | L5: =IF(K5="JA",2,0) -> 2 | M5: NEIN | N5: =IF(M5="JA",2,0) -> 0 | O5: NEIN | P5: =IF(O5="JA",2,0) -> 0 | Q5: =(P5+N5+L5+J5+H5)/100 -> 0.07 | R5: =F5*Q5 -> 84 | S5: =R5*B5 -> 3360 | T5: NEIN | U5: =R5/C5 -> 1.4
A6: Maissilage (körnerreich) | B6: 45 | C6: =VLOOKUP(A6,Daten!$A$1:$L$15,11,0) -> 60 | D6: 150 | E6: =B6*C6 -> 2700 | F6: =C6*D6 -> 9000 | G6: NEIN | H6: =IF(G6="JA",5,0) -> 0 | I6: JA | J6: =IF(I6="JA",5,0) -> 5 | K6: JA | L6: =IF(K6="JA",2,0) -> 2 | M6: NEIN | N6: =IF(M6="JA",2,0) -> 0 | O6: NEIN | P6: =IF(O6="JA",2,0) -> 0 | Q6: =(P6+N6+L6+J6+H6)/100 -> 0.07 | R6: =F6*Q6 -> 630 | S6: 28350 | T6: =VLOOKUP(A6,Daten!$A$1:$L$15,12,FALSE) -> NEIN | U6: 10.5
A7: Grassilage | B7: 50 | C7: =VLOOKUP(A7,Daten!$A$1:$L$15,11,0) -> 20 | D7: 50 | E7: 1000 | F7: 1000 | G7: NEIN | H7: 0 | I7: JA | J7: 5 | K7: JA | L7: 2 | M7: NEIN | N7: 0 | O7: NEIN | P7: 0 | Q7: 0.07 | R7: 70 | S7: 3500 | T7: =VLOOKUP(A7,Daten!$A$1:$L$15,12,FALSE) -> JA | U7: 3.5
A8: GPS | B8: 150 | C8: =VLOOKUP(A8,Daten!$A$1:$L$15,11,0) -> 40 | D8: 50 | E8: 6000 | F8: 2000 | G8: NEIN | H8: 0 | I8: JA | J8: 5 | K8: JA | L8: 2 | M8: NEIN | N8: 0 | O8: NEIN | P8: 0 | Q8: 0.07 | R8: 140 | S8: 21000 | T8: =VLOOKUP(A8,Daten!$A$1:$L$15,12,FALSE) -> JA | U8: 3.5
A9: Grünroggen | B9: 17 | C9: =VLOOKUP(A9,Daten!$A$1:$L$15,11,0) -> 35 | D9: 0 | E9: 595 | F9: 0 | G9: NEIN | H9: 0 | I9: JA | J9: 5 | K9: JA | L9: 2 | M9: NEIN | N9: 0 | O9: NEIN | P9: 0 | Q9: 0.07 | R9: 0 | S9: 0 | T9: =VLOOKUP(A9,Daten!$A$1:$L$15,12,FALSE) -> JA | U9: 0
A10: CCM | B10: 18 | C10: =VLOOKUP(A10,Daten!$A$1:$L$15,11,0) -> 15 | D10: 0 | E10: 270 | F10: 0 | G10: NEIN | H10: 0 | I10: JA | J10: 5 | K10: JA | L10: 2 | M10: NEIN | N10: 0 | O10: NEIN | P10: 0 | Q10: 0.07 | R10: 0 | S10: 0 | T10: =VLOOKUP(A10,Daten!$A$1:$L$15,12,FALSE) -> NEIN | U10: 0
A11: Weizen | B11: 19 | C11: =VLOOKUP(A11,Daten!$A$1:$L$15,11,0) -> 10 | D11: 0 | E11: 190 | F11: 0 | G11: NEIN | H11: 0 | I11: JA | J11: 5 | K11: JA | L11: 2 | M11: NEIN | N11: 0 | O11: NEIN | P11: 0 | Q11: 0.07 | R11: 0 | S11: 0 | T11: =VLOOKUP(A11,Daten!$A$1:$L$15,12,FALSE) -> NEIN | U11: 0
A12: Tritkale/Gerste | B12: 20 | C12: =VLOOKUP(A12,Daten!$A$1:$L$15,11,0) -> 10 | D12: 0 | E12: 200 | F12: 0 | G12: NEIN | H12: 0 | I12: JA | J12: 5 | K12: JA | L12: 2 | M12: NEIN | N12: 0 | O12: NEIN | P12: 0 | Q12: 0.07 | R12: 0 | S12: 0 | T12: =VLOOKUP(A12,Daten!$A$1:$L$15,12,FALSE) -> NEIN | U12: 0
A13: Körnermais | B13: 21 | C13: =VLOOKUP(A13,Daten!$A$1:$L$15,11,0) -> 15 | D13: 0 | E13: 315 | F13: 0 | G13: NEIN | H13: 0 | I13: JA | J13: 5 | K13: JA | L13: 2 | M13: NEIN | N13: 0 | O13: NEIN | P13: 0 | Q13: 0.07 | R13: 0 | S13: 0 | T13: =VLOOKUP(A13,Daten!$A$1:$L$15,12,FALSE) -> NEIN | U13: 0
A14: Zuckerrübe | B14: 22 | C14: =VLOOKUP(A14,Daten!$A$1:$L$15,11,0) -> 80 | D14: 0 | E14: 1760 | F14: 0 | G14: NEIN | H14: 0 | I14: JA | J14: 5 | K14: JA | L14: 2 | M14: NEIN | N14: 0 | O14: NEIN | P14: 0 | Q14: 0.07 | R14: 0 | S14: 0 | T14: =VLOOKUP(A14,Daten!$A$1:$L$15,12,FALSE) -> NEIN | U14: 0
A15: Kartoffel | B15: 23 | C15: =VLOOKUP(A15,Daten!$A$1:$L$15,11,0) -> 65 | D15: 0 | E15: 1495 | F15: 0 | G15: NEIN | H15: 0 | I15: JA | J15: 5 | K15: JA | L15: 2 | M15: NEIN | N15: 0 | O15: NEIN | P15: 0 | Q15: 0.07 | R15: 0 | S15: 0 | T15: =VLOOKUP(A15,Daten!$A$1:$L$15,12,FALSE) -> NEIN | U15: 0
A16: Gesamt | C16: =SUM(C5:C11) -> 240 | D16: 270 | E16: =SUM(E5:E15) -> 16925 | F16: 13200 | R16: =SUM(R5:R11) -> 924 | S16: =SUM(S5:S15) -> 56210 | U16: =SUM(U5:U11) -> 18.9
A20: =S16 -> 56210 | B20: Verlust in Euro
A22: =U16 -> 18.9 | B22: Verlust in Hektar bzw. Mehr Substrat einkaufen
A24: Melde dich gleich bei unseren Biogasexperten !!!!!!!!!!!!!!!!!!!!!!!
